[Event "44th Chess Olympiad Open 2022"]
[Site "Chennai"]
[Date "2022.08.05"]
[Round "7.54"]
[White "Islam Sh.Nour, Kassim"]
[Black "Nsubuga, Haruna"]
[Result "0-1"]
[ECO "A01"]
[WhiteElo "1873"]
[BlackElo "2160"]
[Annotator "TA"]
[PlyCount "252"]
[EventDate "2022.07.29"]
[EventType "team-tourn"]
[EventCountry "IND"]
[SourceTitle "playchess.com"]
[Source "ChessBase"]
[SourceQuality "1"]
[WhiteTeam "Somalia"]
[BlackTeam "Uganda"]
[WhiteTeamCountry "SOM"]
[BlackTeamCountry "UGA"]
[TimeControl "40/5400+30:1800+30"]

{[%evp 9,251,7,5,-1,-3,-12,-13,-3,-10,0,-14,-8,0,-30,0,-8,59,-14,-20,-21,24,19,18,33,36,32,32,33,84,81,83,40,90,65,93,77,172,140,125,129,129,125,149,148,147,147,140,135,149,138,135,75,97,77,176,121,187,187,194,139,139,139,139,139,139,139,139,131,131,131,124,95,266,4,4,4,4,6,32,0,0,0,0,0,61,66,278,0,0,0,0,0,0,0,0,-31,-29,-170,0,0,0,0,0,0,0,0,0,0,0,0,0,0,0,0,0,0,0,0,0,0,0,0,0,0,0,0,0,0,0,0,0,0,0,0,0,0,0,0,0,0,0,0,0,0,0,0,0,0,0,0,0,0,0,0,0,0,0,0,0,0,0,0,0,0,0,0,0,-4,0,0,0,0,0,0,0,0,0,0,0,0,0,0,0,0,0,0,0,0,0,0,0,0,0,0,0,0,0,0,0,0,0,0,0,0,0,0,0,0,0,0,0,0,0,0,0,0,0,-27986,-27986,-27987,-27987,-27988,-27985,-27987,-27985,-27986,-27985,-27986,-27986,-27989,-27988,-27989,-27986,-27987,-27987,-27989,-27984,-27985,0,-27989,-27987,-27991,-27987,-29999]} 1. b3 {[%emt 0:01:27]} e5 {[%emt 0:00:20]} 2. Bb2 {[%emt 0:00:08]} Nc6 {[%emt 0:00:07]} 3. e3 {[%emt 0:00:05]} d6 {[%emt 0:00:27]} 4. Bb5 {[%emt 0:01:37]} Nge7 {[%emt 0:01:12]} 5. d4 {[%emt 0:02:32]} a6 {[%emt 0:00:16]} 6. Bxc6+ {[%emt 0:03:09] A01: Nimzowitsch-Larsen Opening.} Nxc6 {[%emt 0:00:58]} 7. d5 {[%emt 0:00:16]} Ne7 {[%emt 0:01:51]} 8. c4 $1 {[%emt 0:01:18] The position is equal.} g6 {[%emt 0:01:32] [#]} 9. Ne2 $146 {[%emt 0:08:16]} ({Predecessor:} 9. e4 Bg7 10. Ne2 f5 11. Nd2 c5 12. dxc6 bxc6 13. f4 O-O 14. fxe5 dxe5 15. O-O {0-1 (43) Khaziyeva,D (2158)-Poulin,M (2078) Montreal 2010}) 9... Bg7 {[%emt 0:00:19]} 10. O-O {[%emt 0:00:20]} O-O {[%emt 0:00:11]} 11. Nbc3 {[%emt 0:00:49][%cal Bb1c3,Bc3d1,Bd1f2,Bf2h3][%mdl 32]} f5 {[%emt 0:02:40]} 12. f4 {[%emt 0:00:23]} c5 {[%emt 0:02:17]} (12... Bd7 $11) 13. Qc2 {[%emt 0:05:39]} ({White should play} 13. dxc6 $1 $14 bxc6 14. fxe5 Bxe5 15. Na4) 13... b5 $11 {[%emt 0:02:03]} 14. Nd1 {[%emt 0:02:02]} bxc4 {[%emt 0:00:47]} 15. bxc4 {[%emt 0:00:02]} Bd7 {[%emt 0:03:18]} 16. Nf2 {[%emt 0:03:59]} Rb8 {[%emt 0:03:03][%cal Ob8b2]} 17. Bc3 {[%emt 0:00:22]} Nc8 {[%emt 0:03:07]} 18. Rab1 {[%emt 0:00:42]} Ra8 {[%emt 0:15:50]} (18... Rxb1 $14 19. Rxb1 Qe7) 19. Rb7 $16 {[%emt 0:05:21]} Re8 {[%emt 0:04:58]} 20. Nh3 {[%emt 0:06:57]} h6 {[%emt 0:02:35]} (20... Ra7 $14 21. Rfb1 Rxb7 22. Rxb7 Re7) 21. Rfb1 {[%emt 0:02:02]} Re7 {[%emt 0:04:11]} 22. Qb2 {[%emt 0:14:44]} Ba4 {[%emt 0:06:56]} (22... Qe8 $16 {is a better defense.}) 23. Rxe7 {[%emt 0:04:01]} Qxe7 {[%emt 0:00:05]} 24. Qb7 {[%emt 0:00:38]} Qxb7 {[%emt 0:00:51]} 25. Rxb7 {[%emt 0:00:06]} Ra7 {[%emt 0:00:59]} 26. Rb8 {[%emt 0:00:41]} Bd7 {[%emt 0:00:15]} 27. Ba5 {[%emt 0:00:14]} Kf7 {[%emt 0:04:04]} 28. Nf2 $1 {[%emt 0:07:57]} e4 {[%emt 0:05:49]} 29. Nd1 {[%emt 0:01:43]} Bf6 {[%emt 0:05:19]} 30. Ndc3 {[%emt 0:01:36]} (30. g4 $142 $1) 30... Ke7 {[%emt 0:06:08]} 31. Kf2 {[%emt 0:00:31][%cal Og2g4]} g5 {[%emt 0:01:37]} (31... Kf7 $16) 32. g3 {[%emt 0:00:07]} (32. g4 $18) 32... g4 {[%emt 0:00:44]} (32... gxf4 $16 33. gxf4 (33. Nxf4 Bxc3 34. Bxc3 a5 $16) 33... Bh4+ 34. Kg2 Kf7) 33. Ke1 $18 {[%emt 0:01:22]} h5 {[%emt 0:00:16]} 34. Kd2 {[%emt 0:00:06]} (34. Nd1 $18) 34... h4 {[%emt 0:00:13]} 35. gxh4 {[%emt 0:03:23]} Bxh4 {[%emt 0:00:09]} 36. Ng3 {[%emt 0:00:04]} Kf7 {[%emt 0:03:13]} 37. Ke1 {[%emt 0:01:30]} Bf6 {[%emt 0:02:17]} 38. Nge2 {[%emt 0:02:03]} Kg6 {[%emt 0:01:19]} 39. Kf2 {[%emt 0:06:10]} Bh4+ {[%emt 0:00:03]} 40. Kg2 {[%emt 0:00:12]} Be1 $2 {[%emt 0:00:24]} (40... Bf6 $16 {was worth a try.}) 41. Bb6 $2 {[%emt 0:31:51]} (41. Bd8 $18) 41... Nxb6 $11 {[%emt 0:30:27]} 42. Rxb6 {[%emt 0:00:06]} Kf7 {[%emt 0:00:39]} 43. Rxd6 {[%emt 0:00:06]} Rb7 {[%emt 0:00:09] Inhibits Rb6.} 44. Rxa6 {[%emt 0:01:15]} (44. Kf1 $5 {[%cal Rf1e1]} Bd2 45. Kf2 $11 (45. Rxa6 Bxe3 46. a4 Rb3 $11)) 44... Rb2 {[%emt 0:00:36]} 45. Kf1 {[%emt 0:01:36]} Bd2 {[%emt 0:00:23]} 46. Ra3 {[%emt 0:00:52]} Bxe3 {[%emt 0:00:48]} (46... Ke7 $11) 47. Nxe4 $14 {[%emt 0:00:34]} Bxf4 {[%emt 0:01:36]} (47... Rb1+ $1 $14 48. Kg2 Bxf4) 48. Nxc5 $2 {[%emt 0:05:15]} ({White should try} 48. Nxf4 $18 fxe4 49. Ra7) 48... Bd6 $11 {[%emt 0:00:58] A strong pair of Bishops.} 49. Ra7 {[%emt 0:00:09]} Bxc5 {[%emt 0:00:14]} 50. Rxd7+ {[%emt 0:00:05][%mdl 4096] Endgame KRB-KRN} Kf6 {[%emt 0:00:13] Threatens to win with ...Rb1+.} (50... Ke8 $5 51. Rc7 Be3 $11) 51. Rc7 {[%emt 0:03:32]} Be3 {[%emt 0:00:08]} 52. Rc6+ {[%emt 0:01:20]} Kf7 {[%emt 0:00:39]} 53. Re6 {[%emt 0:01:03] [#]} (53. Ng3 $11) 53... f4 $2 {[%emt 0:00:20]} (53... Rb1+ $1 $19 54. Kg2 f4 55. Rxe3 fxe3) 54. Nxf4 {[%emt 0:00:00]} Bxf4 {[%emt 0:00:00] KRB-KR} 55. Re4 {[%emt 0:00:00]} Bxh2 {[%emt 0:00:00] ...g3 is the strong threat.} 56. Rxg4 {[%emt 0:00:00]} Rxa2 {[%emt 0:00:00]} 57. Rh4 {[%emt 0:00:00]} Bd6 {[%emt 0:00:00]} 58. Rh6 {[%emt 0:00:00]} Bc5 {[%emt 0:00:00]} 59. Rc6 {[%emt 0:00:00]} Bd4 {[%emt 0:00:00]} 60. Ke1 {[%emt 0:00:00]} Bf6 {[%emt 0:00:00]} 61. Kd1 {[%emt 0:00:00]} Kg6 {[%emt 0:00:00]} 62. d6 {[%emt 0:00:00]} Kf7 {[%emt 0:00:00]} 63. c5 {[%emt 0:00:00]} Bg5 {[%emt 0:00:00]} 64. Ke1 {[%emt 0:00:00]} Ke6 {[%emt 0:00:00]} 65. Rc8 {[%emt 0:00:00]} Rc2 {[%emt 0:00:00]} 66. Kd1 {[%emt 0:00:00]} Rd2+ {[%emt 0:00:00]} 67. Ke1 {[%emt 0:00:00]} Rh2 {[%emt 0:00:00]} 68. Kf1 {[%emt 0:00:00]} Rc2 {[%emt 0:00:00]} 69. Ke1 {[%emt 0:00:00]} Bf4 {[%emt 0:00:00]} 70. Kd1 {[%emt 0:00:00]} Rc1+ {[%emt 0:00:00]} 71. Ke2 {[%emt 0:00:00]} Rc3 {[%emt 0:00:00]} 72. Rc7 {[%emt 0:00:00]} Bg5 {[%emt 0:00:46]} 73. Rc8 {[%emt 0:00:00]} Kd7 {[%emt 0:00:42]} 74. Rc7+ {[%emt 0:00:00]} Ke6 {[%emt 0:01:57]} 75. Rc8 {[%emt 0:00:00]} Ra3 {[%emt 0:02:35]} 76. Rc7 {[%emt 0:00:00]} Bd8 {[%emt 0:01:01]} 77. Rh7 {[%emt 0:00:00]} Rc3 {[%emt 0:01:55]} 78. Rh8 {[%emt 0:00:00]} Ba5 {[%emt 0:02:18]} 79. Rh5 {[%emt 0:00:00]} Ra3 {[%emt 0:01:00]} 80. Rh7 {[%emt 0:01:14]} Bd8 {[%emt 0:00:21]} 81. Rh8 {[%emt 0:00:48]} Ra8 {[%emt 0:00:12]} 82. Kd3 {[%emt 0:00:29]} Kd5 {[%emt 0:00:05]} 83. Rh5+ {[%emt 0:04:17]} Kc6 {[%emt 0:00:48]} 84. Rf5 {[%emt 0:01:12]} Bh4 {[%emt 0:00:53]} 85. Kc4 {[%emt 0:01:55]} Rh8 {[%emt 0:01:05]} 86. Rd5 {[%emt 0:02:04]} Bf6 {[%emt 0:00:40] White must now prevent ...Rh4+.} 87. Rd3 {[%emt 0:01:58]} Rh4+ {[%emt 0:00:04]} 88. Kb3 {[%emt 0:00:12]} Kxc5 {[%emt 0:01:07]} 89. d7 {[%emt 0:00:09]} Rb4+ {[%emt 0:01:46]} 90. Kc2 {[%emt 0:00:35]} Rb8 {[%emt 0:01:39]} 91. Kd1 {[%emt 0:00:33]} Rd8 {[%emt 0:00:13]} 92. Ke2 {[%emt 0:01:07]} Bd4 {[%emt 0:00:05]} 93. Rh3 {[%emt 0:02:01]} Rxd7 {[%emt 0:00:07]} 94. Kd3 {[%emt 0:00:21]} Kd5 {[%emt 0:01:45]} 95. Rh5+ {[%emt 0:00:59]} Be5 {[%emt 0:00:00]} 96. Rh1 {[%emt 0:00:26]} Rf7 {[%emt 0:00:00]} 97. Rh3 {[%emt 0:00:08]} Ra7 {[%emt 0:00:19]} 98. Rh4 {[%emt 0:00:19]} Ra3+ {[%emt 0:00:08]} 99. Ke2 {[%emt 0:00:16]} Rb3 {[%emt 0:03:26]} 100. Ra4 {[%emt 0:00:15]} Bd4 {[%emt 0:00:07]} 101. Ra8 {[%emt 0:00:23]} Ke4 {[%emt 0:00:31]} 102. Re8+ {[%emt 0:01:20]} Be5 {[%emt 0:00:02]} 103. Rd8 {[%emt 0:00:18]} Rh3 {[%emt 0:01:53]} 104. Rf8 {[%emt 0:00:10]} Re3+ {[%emt 0:01:11]} 105. Kd2 {[%emt 0:01:11]} Ra3 {[%emt 0:00:23]} 106. Rc8 {[%emt 0:00:31]} Rh3 {[%emt 0:00:47]} 107. Kc2 {[%emt 0:00:18]} Rh2+ {[%emt 0:00:08]} 108. Kb3 {[%emt 0:01:09]} Rb2+ {[%emt 0:01:27]} 109. Ka3 {[%emt 0:00:35]} Rb7 {[%emt 0:01:09]} 110. Ka4 {[%emt 0:00:26]} Kd5 {[%emt 0:00:27]} 111. Rc2 {[%emt 0:01:04]} Bd4 {[%emt 0:00:07]} 112. Rc8 {[%emt 0:00:08]} Bc5 {[%emt 0:00:29]} 113. Rg8 {[%emt 0:03:17] [#]} Kc4 $1 {[%emt 0:00:31]} 114. Rg4+ {[%emt 0:00:54]} Bd4 {[%emt 0:00:04]} 115. Rg5 {[%emt 0:00:10]} Rh7 {[%emt 0:02:12]} 116. Rf5 {[%emt 0:00:23]} Rh1 {[%emt 0:04:55]} 117. Rf3 {[%emt 0:00:16]} Ra1+ {[%emt 0:02:19]} 118. Ra3 {[%emt 0:00:11]} Rb1 {[%emt 0:00:10]} 119. Rh3 {[%emt 0:02:07]} Rb8 {[%emt 0:01:42]} 120. Rh5 {[%emt 0:00:19]} Ra8+ {[%emt 0:00:09]} 121. Ra5 {[%emt 0:00:09]} Rb8 {[%emt 0:00:30]} 122. Rh5 {[%emt 0:00:06]} Rb4+ {[%emt 0:00:05]} 123. Ka5 {[%emt 0:01:36]} Rb7 {[%emt 0:00:50]} 124. Ka4 {[%emt 0:00:27]} Bf2 {[%emt 0:00:43] Black mates.} 125. Rf5 {[%emt 0:00:29]} Be3 {[%emt 0:01:02]} 126. Rf3 {[%emt 0:01:20]} Ra7# {[%emt 0:00:09] Black used his chance.  Weighted Error Value: White=0.26 (precise) /Black=0.30} 0-1

[Event "44th Chess Olympiad Open 2022"]
[Site "Chennai"]
[Date "2022.08.05"]
[Round "7.55"]
[White "Gong, Daniel Hanwen"]
[Black "Martyr, Reginald"]
[Result "*"]
[ECO "D80"]
[WhiteElo "2296"]
[BlackElo "2194"]
[Annotator "NA RC"]
[PlyCount "49"]
[EventDate "2022.07.29"]
[EventType "team-tourn"]
[EventCountry "IND"]
[SourceTitle "playchess.com"]
[Source "ChessBase"]
[SourceQuality "1"]
[WhiteTeam "New Zealand"]
[BlackTeam "LCA"]
[WhiteTeamCountry "NZL"]
[TimeControl "40/5400+30:1800+30"]

1. d4 {[%emt 0:01:02]} Nf6 {[%emt 0:00:20]} 2. c4 {[%emt 0:02:10]} g6 {[%emt 0:00:48]} 3. Nc3 {[%emt 0:00:06]} d5 {[%emt 0:00:13]} 4. Bg5 {[%emt 0:00:28]} Ne4 {[%emt 0:01:09]} 5. Bf4 {[%emt 0:00:07]} Nxc3 {[%emt 0:03:08]} 6. bxc3 {[%emt 0:00:12]} Bg7 {[%emt 0:03:01]} 7. e3 {[%emt 0:02:49]} O-O {[%emt 0:02:29]} 8. Nf3 {[%emt 0:02:38]} c5 {[%emt 0:00:54]} 9. cxd5 {[%emt 0:02:10]} cxd4 {[%emt 0:01:37]} 10. cxd4 {[%emt 0:01:04]} Qxd5 {[%emt 0:00:45]} 11. Be2 {[%emt 0:03:50]} Nc6 {[%emt 0:05:45]} 12. O-O {[%emt 0:02:53]} b6 {[%emt 0:08:51]} 13. Rc1 {[%emt 0:27:03]} Bb7 {[%emt 0:01:36]} 14. Bc4 {[%emt 0:00:19]} Qh5 {[%emt 0:07:11]} 15. Qe2 {[%emt 0:04:49]} a6 {[%emt 0:25:35]} 16. a4 {[%emt 0:00:34]} Qa5 {[%emt 0:04:25]} 17. Rb1 {[%emt 0:06:36]} Qxa4 {[%emt 0:09:36]} 18. Rxb6 {[%emt 0:01:04]} Nd8 {[%emt 0:16:49]} 19. Nd2 {[%emt 0:05:59]} a5 {[%emt 0:01:20]} 20. Nb3 {[%emt 0:02:07]} Qd7 {[%emt 0:01:40]} 21. Nc5 {[%emt 0:01:49]} Qc8 {[%emt 0:00:02]} 22. Nxb7 {[%emt 0:02:26]} Nxb7 {[%emt 0:00:16]} 23. Ba6 {[%emt 0:00:19]} Ra7 {[%emt 0:03:47]} 24. Rfb1 {[%emt 0:00:09]} Qc3 {[%emt 0:00:42]} 25. Rxb7 {[%emt 0:01:30]} *

[Event "44th Chess Olympiad Open 2022"]
[Site "Chennai"]
[Date "2022.08.05"]
[Round "7.55"]
[White "Sixtus Gabriel"]
[Black "Xie, Felix"]
[Result "1-0"]
[ECO "B15"]
[WhiteElo "1787"]
[BlackElo "2224"]
[Annotator "ChessBase"]
[PlyCount "89"]
[EventDate "2022.07.29"]
[EventType "team-tourn"]
[EventCountry "IND"]
[SourceTitle "playchess.com"]
[Source "ChessBase"]
[SourceQuality "1"]
[WhiteTeam "LCA"]
[BlackTeam "New Zealand"]
[BlackTeamCountry "NZL"]
[TimeControl "40/5400+30:1800+30"]

1. e4 {[%emt 0:00:04]} c6 {[%emt 0:00:17]} 2. d4 {[%emt 0:00:17]} d5 {[%emt 0:00:08]} 3. Nd2 {[%emt 0:00:09]} dxe4 {[%emt 0:00:06]} 4. Nxe4 {[%emt 0:00:13]} Nf6 {[%emt 0:00:09]} 5. Ng3 {[%emt 0:02:47]} h5 {[%emt 0:00:23]} 6. Bc4 {[%emt 0:00:35]} h4 {[%emt 0:00:22]} 7. N3e2 {[%emt 0:00:34]} Bg4 {[%emt 0:01:22]} 8. h3 {[%emt 0:01:32]} Bh5 {[%emt 0:02:42]} 9. c3 {[%emt 0:00:55]} e6 {[%emt 0:03:27]} 10. Qb3 {[%emt 0:01:07]} b5 {[%emt 0:03:42]} 11. Bd3 {[%emt 0:02:53]} Nd5 {[%emt 0:02:22]} 12. a4 {[%emt 0:05:51]} b4 {[%emt 0:06:02]} 13. c4 {[%emt 0:06:57]} Nc7 {[%emt 0:01:55]} 14. Be3 {[%emt 0:01:18]} a5 {[%emt 0:08:50]} 15. Nf4 {[%emt 0:07:11]} Nba6 {[%emt 0:00:56]} 16. Nxh5 {[%emt 0:01:48]} Rxh5 {[%emt 0:02:26]} 17. Be4 {[%emt 0:02:02]} Nb8 {[%emt 0:08:07]} 18. Bf3 {[%emt 0:04:52]} Rh8 {[%emt 0:01:25]} 19. Rd1 {[%emt 0:01:54]} Bd6 {[%emt 0:01:22]} 20. Ne2 {[%emt 0:01:50]} Ra6 {[%emt 0:02:56]} 21. O-O {[%emt 0:04:19]} Nd7 {[%emt 0:02:26]} 22. Rfe1 {[%emt 0:02:58]} Kf8 {[%emt 0:01:40]} 23. Qd3 {[%emt 0:03:16]} g5 {[%emt 0:02:11]} 24. Nc1 {[%emt 0:07:39]} f5 {[%emt 0:16:37]} 25. d5 {[%emt 0:08:32]} Ne5 {[%emt 0:02:36]} 26. Qe2 {[%emt 0:04:02]} cxd5 {[%emt 0:23:03]} 27. cxd5 {[%emt 0:01:08]} exd5 {[%emt 0:03:14]} 28. Bd4 {[%emt 0:01:44]} Nxf3+ {[%emt 0:00:27]} 29. Qxf3 {[%emt 0:01:09]} Rh7 {[%emt 0:00:01]} 30. Qxf5+ {[%emt 0:01:12]} Rf7 {[%emt 0:00:01]} 31. Qg4 {[%emt 0:01:24]} Be7 {[%emt 0:00:57]} 32. Nd3 {[%emt 0:01:09]} Bf6 {[%emt 0:01:02]} 33. Ne5 {[%emt 0:00:47]} Bxe5 {[%emt 0:00:10]} 34. Rxe5 {[%emt 0:00:41]} Rg6 {[%emt 0:00:23]} 35. Qh5 {[%emt 0:00:56]} Rfg7 {[%emt 0:01:56]} 36. Rf5+ {[%emt 0:01:16]} Kg8 {[%emt 0:00:02]} 37. Bxg7 {[%emt 0:00:20]} Kxg7 {[%emt 0:00:02]} 38. Re1 {[%emt 0:02:46]} d4 {[%emt 0:00:57]} 39. Rfe5 {[%emt 0:01:44]} Nd5 {[%emt 0:00:56]} 40. Re8 {[%emt 0:02:08]} Qd6 {[%emt 0:00:02]} 41. Qh8+ {[%emt 0:30:12]} Kf7 {[%emt 0:30:02]} 42. Qh7+ {[%emt 0:00:28]} Rg7 {[%emt 0:00:08]} 43. Qf5+ {[%emt 0:00:23]} Nf6 {[%emt 0:00:06]} 44. R1e6 {[%emt 0:00:26]} Qd5 {[%emt 0:02:36]} 45. Re5 1-0

[Event "44th Chess Olympiad Open 2022"]
[Site "Chennai"]
[Date "2022.08.05"]
[Round "7.55"]
[White "Nicholas Arvin"]
[Black "Stark, John"]
[Result "0-1"]
[ECO "A32"]
[WhiteElo "1744"]
[BlackElo "2028"]
[Annotator "TA"]
[PlyCount "70"]
[EventDate "2022.07.29"]
[EventType "team-tourn"]
[EventCountry "IND"]
[SourceTitle "playchess.com"]
[Source "ChessBase"]
[SourceQuality "1"]
[WhiteTeam "LCA"]
[BlackTeam "New Zealand"]
[BlackTeamCountry "NZL"]
[TimeControl "40/5400+30:1800+30"]

{[%evp 10,70,12,0,64,62,50,54,61,66,64,55,101,114,80,19,25,43,33,0,0,0,8,-13,27,29,48,53,46,41,47,-17,-10,-45,0,-9,0,0,0,-58,75,46,179,71,82,84,138,-108,0,0,0,-108,-99,-110,-97,-182,-136,-142,-132,-894,-915,-29998,-29999]} 1. d4 {[%emt 0:00:02]} Nf6 {[%emt 0:00:10]} 2. c4 {[%emt 0:00:25]} e6 {[%emt 0:00:05]} 3. Nc3 {[%emt 0:00:05]} Bb4 {[%emt 0:00:06]} 4. Bg5 {[%emt 0:00:31]} c5 {[%emt 0:01:57]} 5. Nf3 {[%emt 0:03:47]} cxd4 {[%emt 0:02:39]} 6. Nxd4 {[%emt 0:01:44] [#]} Qb6 $146 {[%emt 0:02:51] A32: Symmetrical English: 2 Nf3 Nf6 3 d4 cxd4 4 Nxd4 e6.} (6... h6 $11 7. Bd2 Nc6) ({Predecessor:} 6... h6 7. Bxf6 Qxf6 8. Rc1 Nc6 9. e3 O-O 10. Be2 d5 11. cxd5 Nxd4 12. exd4 exd5 13. O-O Be6 14. Bf3 {½-½ (26) Elwert,H (2681)-Bang,E (2661) Netherland 1999}) 7. Bxf6 $14 {[%emt 0:18:51]} Bxc3+ {[%emt 0:08:42]} 8. bxc3 {[%emt 0:00:09]} gxf6 {[%emt 0:00:15] White is slightly better.} 9. Rb1 {[%emt 0:02:56]} Qc5 {[%emt 0:02:50]} 10. e3 {[%emt 0:09:04]} a6 {[%emt 0:15:06]} (10... Nc6 $14) 11. Qf3 $16 {[%emt 0:03:28]} Ke7 {[%emt 0:01:45]} 12. Bd3 {[%emt 0:06:43]} (12. Be2 $16) 12... Nc6 $11 {[%emt 0:03:10]} 13. Nb3 $1 {[%emt 0:01:55]} Qd6 {[%emt 0:07:48]} 14. Rd1 {[%emt 0:03:48]} Ne5 {[%emt 0:02:18][%csl LRd3,LRf3]} 15. Qe2 {[%emt 0:00:21]} Qc7 {[%emt 0:02:01][%cal Ob7b5]} 16. Nd2 {[%emt 0:02:41]} b6 {[%emt 0:01:56]} 17. Be4 {[%emt 0:11:16]} Bb7 {[%emt 0:01:42]} 18. Bxb7 {[%emt 0:00:22]} Qxb7 {[%emt 0:00:02]} 19. f4 {[%emt 0:00:34]} Ng6 {[%emt 0:06:10]} 20. Rg1 {[%emt 0:12:04]} (20. O-O $14) 20... Rac8 {[%emt 0:02:24]} 21. g3 {[%emt 0:02:18]} Rc5 {[%emt 0:03:19]} 22. Nb3 $36 {[%emt 0:02:15][%mdl 2048] White fights for an advantage.} Rc7 {[%emt 0:00:36]} 23. Rd4 {[%emt 0:03:55]} Rhc8 {[%emt 0:02:00]} 24. Kf2 {[%emt 0:00:50]} (24. Rf1 $11) 24... a5 {[%emt 0:05:30]} (24... e5 $15 {keeps the upper hand.} 25. Rd5 Rxc4) 25. Rgd1 {[%emt 0:01:35]} Rg8 {[%emt 0:04:40]} ({Better is} 25... e5 $14 26. Rd6 Rxc4) 26. e4 {[%emt 0:01:10]} (26. Nd2 $1 $18 {and White stays clearly on top.}) 26... e5 {[%emt 0:05:44]} 27. Rd5 {[%emt 0:04:11] aiming for f5.} exf4 {[%emt 0:00:31] [#]} (27... a4 $142) 28. g4 $2 {[%emt 0:01:00]} (28. Nd4 $1 $16 {[%cal Rd4f5] is forced if you want to stay better.}) 28... f3 {[%emt 0:00:58]} (28... Ne5 $17 29. h3 Qc6) 29. Qd2 {[%emt 0:02:23] Strongly threatening Nd4.} Ne5 {[%emt 0:07:31] Chess con chili.} 30. Qf4 {[%emt 0:01:55]} (30. Nd4 $1 $11 Rg6 31. Qf4 (31. Nxf3 Nxg4+ 32. Kf1 Ne5 $11) 31... Rxc4 32. Rxe5+ (32. Nxf3 Nxf3 33. Rxd7+ Qxd7 $15) 32... fxe5 33. Qxe5+ Kf8 34. Qh8+ Rg8 35. Qf6) 30... Nxg4+ {[%emt 0:01:19]} ({Of course not} 30... Rxc4 $6 31. Rxe5+ fxe5 32. Qxe5+ Kd8 33. Qf6+ Ke8 34. Qe5+ Kf8 35. Qd6+ Ke8 36. Qe5+ Kf8 37. Qd6+ Ke8 38. Qe5+ $11) 31. Kf1 {[%emt 0:00:54] Threatens to win with Nd4.} Qc6 {[%emt 0:01:23]} ({Resist} 31... Rxc4 32. Rxd7+ Qxd7 33. Rxd7+ Kxd7 34. h3 Nh2+ 35. Qxh2 $11) 32. c5 {[%emt 0:01:33]} (32. R1d4 $17 Kf8 33. Rd6) 32... Qb5+ {[%emt 0:00:42]} (32... bxc5 $19 33. c4 {[#]} Qa6 $1 34. Qxc7 Qxc4+ 35. R1d3 (35. R5d3 Ne3+ 36. Ke1 Rg1+ 37. Kf2 Nxd1+ 38. Kxg1 f2+ 39. Kg2 Qxe4+ 40. Rf3 Qxf3+ 41. Kxf3 f1=Q+ 42. Kg3 Qg1+ 43. Kf3 Qf2+ 44. Ke4 Qe2+ 45. Kd5 Ne3+ 46. Ke4 f5+ 47. Kf4 f6 48. Qxc5+ Kf7) 35... Ne3+ 36. Kf2 Nxd5 37. Qxc5+ Qxc5+ 38. Nxc5 d6) 33. R1d3 $17 {[%emt 0:00:18]} ({But not} 33. c4 $2 Qxc4+ 34. R1d3 Ne5 35. Rxe5+ fxe5 $19) 33... Ne5 {[%emt 0:01:17]} 34. Rd6 {[%emt 0:01:40][%mdl 8192]} (34. c6 $17 Qc4 35. cxd7) 34... Rg6 $19 {[%emt 0:03:09]} 35. Rxf6 {[%emt 0:00:39]} Qxd3+ {[%emt 0:00:06] Weighted Error Value: White=0.70/Black=0.34} 0-1

[Event "44th Chess Olympiad Open 2022"]
[Site "Chennai"]
[Date "2022.08.05"]
[Round "7.56"]
[White "Miguel, Sergio"]
[Black "Al Maashani, Amer"]
[Result "1-0"]
[ECO "B59"]
[WhiteElo "2274"]
[BlackElo "1947"]
[Annotator "NA RC"]
[PlyCount "105"]
[EventDate "2022.07.29"]
[EventType "team-tourn"]
[EventCountry "IND"]
[SourceTitle "playchess.com"]
[Source "ChessBase"]
[SourceQuality "1"]
[WhiteTeam "Angola"]
[BlackTeam "OMA"]
[WhiteTeamCountry "ANG"]
[TimeControl "40/5400+30:1800+30"]

1. e4 {[%emt 0:00:16]} c5 {[%emt 0:00:07]} 2. Nf3 {[%emt 0:00:04]} Nc6 {[%emt 0:00:05]} 3. d4 {[%emt 0:00:11]} cxd4 {[%emt 0:00:14]} 4. Nxd4 {[%emt 0:00:02]} Nf6 {[%emt 0:01:08]} 5. Nc3 {[%emt 0:00:12]} d6 {[%emt 0:02:09]} 6. Be2 {[%emt 0:00:15]} e5 {[%emt 0:00:14]} 7. Nb3 {[%emt 0:00:52]} Be6 {[%emt 0:00:34]} 8. O-O {[%emt 0:01:54]} d5 {[%emt 0:05:13]} 9. exd5 {[%emt 0:04:21]} Nxd5 {[%emt 0:02:21]} 10. Ne4 {[%emt 0:00:23]} Ndb4 {[%emt 0:14:33]} 11. Bd2 {[%emt 0:12:00]} Bxb3 {[%emt 0:12:05]} 12. axb3 {[%emt 0:03:07]} Qd4 {[%emt 0:00:36]} 13. Bf3 {[%emt 0:06:07]} Qb6 {[%emt 0:06:04]} 14. c3 {[%emt 0:03:53]} Nd5 {[%emt 0:06:34]} 15. b4 {[%emt 0:02:45]} Rd8 {[%emt 0:07:18]} 16. Qb3 {[%emt 0:01:02]} Be7 {[%emt 0:07:09]} 17. Ng5 {[%emt 0:03:15]} Bxg5 {[%emt 0:00:10]} 18. Bxg5 {[%emt 0:00:02]} Nf6 {[%emt 0:00:15]} 19. Qa4 {[%emt 0:09:35]} Rd7 {[%emt 0:10:07]} 20. b5 {[%emt 0:03:10]} Nd8 {[%emt 0:00:26]} 21. Be3 {[%emt 0:06:17]} Qc7 {[%emt 0:01:03]} 22. Qxa7 {[%emt 0:00:25]} O-O {[%emt 0:01:11]} 23. Qc5 {[%emt 0:00:54]} Ne6 {[%emt 0:04:21]} 24. Qxc7 {[%emt 0:00:16]} Rxc7 {[%emt 0:00:03]} 25. Bb6 {[%emt 0:00:54]} Rd7 {[%emt 0:00:23]} 26. Rfd1 {[%emt 0:04:02]} e4 {[%emt 0:00:32]} 27. Be2 {[%emt 0:00:14]} Nd5 {[%emt 0:01:17]} 28. Be3 {[%emt 0:02:43]} Rfd8 {[%emt 0:00:29]} 29. Bg4 {[%emt 0:01:19]} Kf8 {[%emt 0:05:50]} 30. Bxe6 {[%emt 0:00:31]} fxe6 {[%emt 0:00:01]} 31. Bg5 {[%emt 0:02:21]} Nf6 {[%emt 0:01:08]} 32. Rxd7 {[%emt 0:00:37]} Rxd7 {[%emt 0:00:00]} 33. Kf1 {[%emt 0:00:36]} Rd5 {[%emt 0:03:05]} 34. Bxf6 {[%emt 0:00:29]} gxf6 {[%emt 0:00:00]} 35. c4 {[%emt 0:00:28]} Rd2 {[%emt 0:00:46]} 36. b3 {[%emt 0:02:23]} Ke7 {[%emt 0:03:09]} 37. Ra7 {[%emt 0:03:00]} Kd6 {[%emt 0:03:10]} 38. Rxb7 {[%emt 0:00:10]} Rb2 {[%emt 0:01:24]} 39. Rb6+ {[%emt 0:00:55]} Ke5 {[%emt 0:01:05]} 40. Rc6 {[%emt 0:07:11]} f5 {[%emt 0:01:13]} 41. g3 {[%emt 0:32:34]} h5 {[%emt 0:31:56]} 42. b6 {[%emt 0:03:07]} Kd4 {[%emt 0:00:00]} 43. Rxe6 {[%emt 0:00:00]} Rxb3 {[%emt 0:00:00]} 44. Rc6 {[%emt 0:00:00]} h4 {[%emt 0:00:00]} 45. gxh4 {[%emt 0:00:00]} f4 {[%emt 0:00:00]} 46. Kg2 {[%emt 0:00:00]} Rb2 {[%emt 0:00:00]} 47. h5 {[%emt 0:00:00]} e3 {[%emt 0:00:00]} 48. h6 {[%emt 0:00:00]} Rxf2+ {[%emt 0:00:45]} 49. Kg1 {[%emt 0:00:00]} Rf3 {[%emt 0:03:17]} 50. h7 {[%emt 0:00:00]} Rh3 {[%emt 0:00:27]} 51. b7 {[%emt 0:00:00]} f3 {[%emt 0:01:28]} 52. b8=Q {[%emt 0:00:00]} f2+ {[%emt 0:00:32]} 53. Kf1 {[%emt 0:00:00]} 1-0